bitfinex-derivatives/quotes_SOLF0:USTF0_20250311
["timestamp","ask_amount","ask_price","bid_price","bid_amount"]
[1741654274084,79.88023,113.28,113.11,12.9223]
[1741654274279,75.78473,113.28,113.17,0.06302552]
[1741654274481,71.51793,113.28,113.17,0.06302552]
[1741654274682,71.51793,113.28,113.14,71.51793]
[1741654274882,71.51793,113.26,113.14,71.51793]
[1741654275086,71.51793,113.18,113.11,12.9223]
[1741654275288,71.51793,113.22,113.07,71.51793]
[1741654275497,71.51793,113.18,113.08,4.4077]
[1741654275785,0.06750855,113.16,113.13,0.06005693]
[1741654275981,71.51793,113.24,113.13,0.06005693]
[1741654276181,71.51793,113.26,113.14,71.51793]
[1741654276379,76.04083,113.28,113.15,13.1032]
[1741654276586,76.04083,113.28,113.16,71.51793]
[1741654276784,71.51793,113.28,113.16,71.51793]
[1741654276990,71.51793,113.3,113.18,71.51793]
[1741654277487,0.05640208,113.23,113.21,0.0676398]
[1741654277992,71.51793,113.24,113.15,13.1032]
[1741654278291,0.06199757,113.23,113.21,0.05979591]
[1741654278790,71.51793,113.24,113.15,13.1032]
[1741654278987,71.51793,113.28,113.17,71.51793]
[1741654279192,71.51793,113.3,113.21,0.06195138]
[1741654279594,71.51793,113.22,113.09,362.89793]
[1741654279796,71.51793,113.28,113.1,13.1403]
[1741654279797,291.42,113.27,113.1,13.1403]
[1741654279994,71.51793,113.18,113.01,291.42]
[1741654280188,71.51793,113.16,113.06,8.8671]
[1741654280388,71.51793,113.2,113.08,71.51793]
[1741654280593,71.51793,113.2,113.09,4.2732]
[1741654280794,71.51793,113.22,113.1,71.51793]
[1741654280990,71.51793,113.22,113.12,71.51793]
[1741654281194,4.5143,113.26,113.16,71.51793]
[1741654281396,71.51793,113.3,113.18,71.51793]
[1741654281691,71.51793,113.24,113.12,71.51793]
[1741654281896,71.51793,113.2,113.08,71.51793]
[1741654282384,71.51793,113.16,113.07,4.128]
[1741654282791,71.51793,113.2,113.08,71.51793]
[1741654282988,71.51793,113.22,113.08,71.51793]
[1741654283394,0.0575334,113.16,113.07,4.128]
[1741654283588,71.51793,113.15,113.04,71.51793]
[1741654283792,4.5143,113.14,113.03,71.51793]
[1741654283989,8.8436,113.12,113.05,71.51793]
[1741654284193,0.06314013,113.11,113.08,0.06349233]
[1741654284392,71.58107013,113.11,112.99,4.128]
[1741654284596,71.58107013,113.11,112.86,262.51793]
[1741654284597,0.06314013,113.11,112.86,71.51793]
[1741654284802,71.51793,113.07,112.96,71.51793]
[1741654284994,71.51793,113.05,112.94,71.51793]
[1741654285193,80.36693,113.05,112.97,8.8549]
[1741654285388,8.849,113.05,112.93,8.8586]
[1741654285598,71.51793,113.05,112.93,80.37653]
[1741654285803,71.51793,112.99,112.75,594.51668292]
[1741654285995,71.51793,113.01,112.89,71.51793]
[1741654286203,71.51793,113.04,112.98,8.8543]
[1741654286387,71.51793,113.03,112.9,8.4397]
[1741654286592,71.51793,113.03,112.85,291.58]
[1741654286794,71.51793,113.0,112.88,71.51793]
[1741654287095,0.06028047,112.95,112.93,0.05980324]
[1741654287502,71.51793,112.99,112.86,71.51793]
[1741654287702,8.8544,112.98,112.86,71.51793]
[1741654287895,71.51793,112.95,112.83,291.58]
[1741654288096,71.51793,112.98,112.82,79.89753]
[1741654288396,71.51793,112.92,112.8,71.51793]
[1741654288799,71.51793,112.89,112.77,221.1455378]
[1741654289001,71.51793,112.89,112.77,145.4096078]
[1741654289298,71.51793,112.8,112.77,78.04950725]
[1741654289491,71.51793,112.8,112.77,71.16810725]
[1741654289693,143.03586,112.8,112.75,302.93668292]
[1741654289899,71.51793,112.76,112.63,142.7812404]
[1741654290192,71.51793,112.71,112.63,142.7812404]
[1741654290404,363.25793,112.76,112.69,0.06602916]
[1741654290405,71.57830798,112.72,112.69,0.06602916]
[1741654290597,71.51793,112.72,112.63,142.7812404]
[1741654290793,8.8766,112.7,112.63,142.7812404]
[1741654291000,71.51793,112.68,112.63,142.7812404]
[1741654291201,143.03586,112.68,112.63,142.7812404]
[1741654291404,71.51793,112.7,112.63,142.7812404]
[1741654291594,71.51793,112.67,112.63,142.7812404]
[1741654291798,71.51793,112.64,112.63,142.7812404]
[1741654291994,71.51793,112.64,112.63,53.46606424]
[1741654292202,74.17793,112.64,112.62,237.96873401]
[1741654292400,71.51793,112.65,112.62,237.96873401]
[1741654292602,71.58156676,112.65,112.61,285.49268292]
[1741654292803,143.03586,112.62,112.61,263.41002758]
[1741654293102,2.72363676,112.65,112.61,263.41002758]
[1741654293296,71.51793,112.63,112.61,263.41002758]
[1741654293497,71.51793,112.63,112.5,71.51793]
[1741654293707,71.51793,112.63,112.5,10.64]
[1741654293912,71.51793,112.63,112.51,71.51793]
[1741654294513,71.51793,112.59,112.51,10.64]
[1741654295013,0.05646545,112.56,112.49,8.6012]
[1741654295313,0.05646545,112.56,112.49,14.8315]
[1741654295513,71.51793,112.58,112.44,71.51793]
[1741654295712,0.05903562,112.54,112.48,71.51793]
[1741654295915,0.05903562,112.54,112.44,10.64]
[1741654296116,0.05903562,112.54,112.49,80.41023]
[1741654296312,114.90306665,112.62,112.44,82.15793]
[1741654296517,186.42099665,112.62,112.47,71.51793]
[1741654296812,0.06556201,112.53,112.44,82.15793]
[1741654297002,71.51793,112.62,112.44,10.64]
[1741654297203,0.06605124,112.5,112.49,8.8927]
[1741654297415,46.3276587,112.64,112.45,292.68]
[1741654297618,46.3276587,112.64,112.51,72.51656653]
[1741654297619,118.84422523,112.64,112.51,72.51656653]
[1741654297811,46.3276587,112.64,112.54,72.51656653]
[1741654298010,46.3276587,112.64,112.53,72.51656653]
[1741654298210,46.3276587,112.64,112.53,83.15656653]
[1741654298612,0.05841442,112.6,112.57,0.06515683]
[1741654298813,0.05841442,112.6,112.48,72.51656653]
[1741654299009,0.05841442,112.6,112.5,72.51656653]
[1741654299209,173.51656653,112.74,112.5,72.51656653]
[1741654299525,72.49191472,112.69,112.56,72.49191472]
[1741654299815,72.49191472,112.63,112.5,83.13191472]
[1741654300015,72.49191472,112.68,112.5,10.64]
[1741654300016,72.49191472,112.6,112.5,10.64]
[1741654300223,0.05991736,112.64,112.48,72.49191472]
[1741654300510,292.68,112.66,112.46,10.64]
[1741654300720,0.06037522,112.57,112.46,10.64]
[1741654301015,0.06037522,112.57,112.45,8.7207]
[1741654301016,8.94777522,112.57,112.47,72.49191472]
[1741654301217,72.49191472,112.56,112.45,19.3607]
[1741654301717,0.06497282,112.53,112.48,72.49191472]
[1741654302011,0.06497282,112.53,112.45,19.3607]
[1741654302208,72.49191472,112.59,112.45,19.3607]
[1741654302414,72.49191472,112.5,112.45,8.7207]
[1741654302716,72.49191472,112.5,112.41,4.3252]
[1741654302717,72.49191472,112.53,112.41,4.3252]
[1741654303012,8.8931,112.49,112.41,14.9652]
[1741654303213,0.0666422,112.49,112.35,76.81471472]
[1741654303410,72.49191472,112.47,112.35,19.2535]
[1741654303612,8.8985,112.43,112.29,8.9084]
[1741654303818,8.8985,112.43,112.31,72.49191472]
[1741654303819,0.06505751,112.43,112.31,72.49191472]
[1741654304114,72.49191472,112.43,112.32,8.9065]
[1741654304309,0.05622397,112.38,112.34,72.49191472]
[1741654304510,0.05622397,112.38,112.31,83.13191472]
[1741654304711,72.49191472,112.49,112.37,72.49191472]
[1741654304916,101.0,112.61,112.38,4.3334]
[1741654305105,72.49191472,112.56,112.38,4.3334]
[1741654305308,72.49191472,112.46,112.05,17.8548]
[1741654305508,1.776988,112.55,112.24,294.72189593]
[1741654305718,72.49191472,112.46,112.25,298.73939648]
[1741654305918,101.0,112.66,112.44,72.49191472]
[1741654306113,1.54766405,112.71,112.49,8.8922]
[1741654306316,1.54766405,112.71,112.45,6.14767624]
[1741654306506,101.0,112.77,112.45,6.14767624]
[1741654306707,72.49191472,112.65,112.47,72.49191472]
[1741654306912,72.49191472,112.59,112.45,6.14767624]
[1741654307112,72.49191472,112.56,112.38,72.49191472]
[1741654307313,293.14,112.58,112.39,4.2812]
[1741654307519,72.49191472,112.62,112.39,4.2812]
[1741654307717,8.8935,112.49,112.39,4.2812]
[1741654307917,72.49191472,112.49,112.39,4.2812]
[1741654308221,72.55364878,112.52,112.39,4.2812]
[1741654308407,72.49191472,112.52,112.43,0.06756115]
[1741654308813,0.0609267,112.47,112.39,4.2812]
[1741654309016,0.0609267,112.47,112.4,72.49191472]
[1741654309216,72.49191472,112.55,112.46,0.05873387]
[1741654309519,72.49191472,112.55,112.41,72.49191472]
[1741654309713,72.49191472,112.58,112.39,297.4212]
[1741654309914,72.49191472,112.58,112.44,72.49191472]
[1741654310117,72.49191472,112.62,112.47,72.49191472]
[1741654310310,81.37481472,112.62,112.48,4.3554]
[1741654310517,72.49191472,112.63,112.5,0.06474397]
[1741654310917,72.49191472,112.58,112.48,8.477]
[1741654311114,72.49191472,112.52,112.32,72.49191472]
[1741654311312,8.8959,112.46,112.39,12.5633]
[1741654311621,72.49191472,112.46,112.39,8.477]
[1741654311818,8.899,112.42,112.39,4.3554]
[1741654312019,72.49191472,112.5,112.35,4.0863]
[1741654312020,72.49191472,112.44,112.35,4.0863]
[1741654312217,72.55936131,112.44,112.41,1.883e-05]
[1741654312411,72.55936131,112.44,112.29,72.49191472]
[1741654312614,72.49191472,112.41,112.28,4.3554]
[1741654312824,72.49191472,112.44,112.28,4.3554]
[1741654313011,72.49191472,112.44,112.31,72.49191472]
[1741654313217,72.49191472,112.44,112.29,72.49191472]
[1741654313418,72.49191472,112.44,112.32,72.49191472]
[1741654313617,72.49191472,112.44,112.35,0.05699435]
[1741654313918,72.49191472,112.36,112.35,0.05699435]
[1741654314124,72.49191472,112.36,112.24,4.0863]
[1741654314318,72.49191472,112.35,112.25,8.6498]
[1741654314514,72.49191472,112.35,112.25,17.5611]
[1741654314824,72.49191472,112.35,112.25,8.6498]
[1741654315221,72.49191472,112.38,112.26,293.3]
[1741654315624,72.49191472,112.33,112.25,8.6498]
[1741654315819,72.49191472,112.3,112.25,8.6498]
[1741654316123,72.49191472,112.34,112.25,8.6498]
[1741654316312,72.49191472,112.38,112.25,8.6498]
[1741654316313,72.49191472,112.31,112.25,8.6498]
[1741654316513,72.49191472,112.31,112.25,4.3693]
[1741654316725,0.06274685,112.31,112.28,0.06748366]
[1741654317023,0.06274685,112.31,112.22,72.49191472]
[1741654317215,0.06274685,112.31,112.25,72.49191472]
[1741654317416,2.3949,112.43,112.28,72.49191472]
[1741654317622,72.49191472,112.41,112.29,12.8845]
[1741654318019,72.49191472,112.41,112.29,85.37641472]
[1741654318220,300.1276,112.48,112.32,72.49191472]
[1741654318523,0.06054036,112.39,112.37,0.06146788]
[1741654318926,295.8256,112.48,112.29,12.8845]
[1741654319117,72.49191472,112.36,112.29,4.3984]
[1741654319426,72.49191472,112.38,112.29,4.3984]
[1741654319727,72.49191472,112.32,112.21,8.4598]
[1741654320820,0.06459827,112.28,112.18,4.2089]
[1741654321226,72.49191472,112.29,112.18,4.2089]
[1741654321424,0.05626543,112.24,112.18,4.2089]
[1741654321922,0.05626543,112.24,112.14,72.49191472]
[1741654322125,0.05626543,112.24,112.16,72.49191472]
[1741654322326,4.2968,112.26,112.13,72.49191472]
[1741654322522,293.66,112.25,112.11,72.49191472]
[1741654322730,366.15191472,112.25,112.11,72.49191472]
[1741654323122,72.49191472,112.17,111.72,1762.04]
[1741654323331,0.0661544,112.19,112.02,72.49191472]
[1741654323521,293.66,112.25,112.11,72.49191472]
[1741654323720,0.06007516,112.12,112.03,12.8325]
[1741654323921,72.49191472,112.09,111.96,293.66]
[1741654324226,72.49191472,112.16,112.01,76.66081472]
[1741654324430,72.49191472,112.2,112.01,4.1689]
[1741654324727,1.78189593,112.24,112.1,72.49191472]
[1741654324934,1.78189593,112.24,112.11,306.6025]
[1741654325126,1.78189593,112.24,112.16,72.49191472]
[1741654325431,72.49191472,112.38,112.19,72.49191472]
[1741654325630,72.49191472,112.38,112.22,72.49191472]
[1741654325822,72.49191472,112.44,112.2,293.88]
[1741654326131,72.49191472,112.44,112.28,72.49191472]
[1741654326424,72.49191472,112.47,112.31,72.55162211]
[1741654326632,72.49191472,112.5,112.34,72.49191472]
[1741654327025,72.49191472,112.53,112.37,72.49191472]
[1741654327331,72.49191472,112.56,112.41,0.05954461]
[1741654327632,72.49191472,112.64,112.47,72.49191472]
[1741654327928,72.49191472,112.61,112.48,13.1738]
[1741654328227,72.49191472,112.68,112.51,72.49191472]
[1741654328531,1.54563624,112.77,112.58,72.49191472]
[1741654328726,1.54563624,112.77,112.53,0.06135236]
[1741654328727,72.49191472,112.7,112.54,72.49191472]
[1741654329026,72.49191472,112.75,112.6,72.49191472]
[1741654329231,72.49191472,112.75,112.61,0.05949914]
[1741654329430,72.49191472,112.75,112.57,4.5488]
[1741654329431,72.49191472,112.75,112.58,76.71551472]
[1741654329626,366.25191472,112.8,112.61,72.49191472]
[1741654329828,101.0,112.79,112.59,72.49191472]
[1741654330129,72.49191472,112.71,112.56,72.49191472]
[1741654330330,72.49191472,112.71,112.53,4.312]
[1741654330331,72.49191472,112.66,112.54,4.5488]
[1741654330522,597.0592386,112.59,112.54,4.5488]
[1741654331033,597.0592386,112.63,112.54,79.70071472]
[1741654331229,597.0592386,112.63,112.57,72.49191472]
[1741654331424,597.0592386,112.63,112.6,72.49191472]
[1741654331628,597.0592386,112.63,112.61,293.52]
[1741654331629,576.6055386,112.63,112.61,293.52]
[1741654331831,716.47108633,112.69,112.61,293.52]
[1741654332126,716.47108633,112.69,112.67,72.49191472]
[1741654332536,716.47108633,112.69,112.65,72.49191472]
[1741654332732,716.47108633,112.69,112.62,72.49191472]
[1741654333032,716.47108633,112.77,112.66,72.49191472]
[1741654333333,716.47108633,112.77,112.72,72.49191472]
[1741654333530,709.65558633,112.77,112.75,72.49191472]
[1741654333732,76.74461472,112.92,112.75,72.49191472]
[1741654333928,44.4,112.87,112.78,72.49191472]
[1741654334124,44.4,112.88,112.78,72.49191472]
[1741654334428,0.06319999,112.85,112.78,72.49191472]
[1741654334628,44.46319999,112.85,112.82,0.06631288]
[1741654334835,72.49191472,112.89,112.82,0.06631288]
[1741654335031,44.4,112.83,112.79,39.98706029]
[1741654335233,44.4,112.8,112.79,39.98706029]
[1741654335425,398.6312,112.95,112.79,39.98706029]
[1741654335738,0.06604654,112.81,112.79,39.98706029]
[1741654335934,0.06604654,112.81,112.8,39.98706029]
[1741654336227,1.77085177,112.94,112.8,39.98706029]
[1741654336422,0.06263589,112.82,112.8,39.98706029]
[1741654336822,4.3312,112.95,112.81,39.98706029]
[1741654337022,293.3,112.97,112.81,39.98706029]
[1741654337226,0.0622207,112.82,112.81,333.06706029]
[1741654337429,82.42097784,113.01,112.82,39.98706029]
[1741654337723,297.5736,113.05,112.82,39.98706029]
[1741654338033,82.42097784,112.95,112.83,93.30314068]
[1741654338234,82.42097784,112.94,112.83,93.30314068]
[1741654338641,0.05683834,112.9,112.87,0.06469407]
[1741654338826,0.05683834,112.9,112.84,93.30314068]
[1741654339032,82.42097784,112.88,112.84,93.30314068]
[1741654339236,82.42097784,112.85,112.69,82.42097784]
[1741654339432,293.08,112.87,112.76,8.86]
[1741654339634,82.42097784,112.91,112.81,8.86]
[1741654339827,292.86,112.94,112.7,292.86]
[1741654339828,82.42097784,112.87,112.76,8.86]
[1741654340029,82.42097784,112.84,112.72,8.86]
[1741654340231,0.06191063,112.83,112.72,2.66]
[1741654340533,82.42097784,112.81,112.8,0.0661694]
[1741654340735,82.42097784,112.81,112.74,142.05464452]
[1741654340936,82.42097784,112.78,112.74,142.05464452]
[1741654341129,292.86,112.77,112.72,236.75774088]
[1741654341432,0.06142586,112.82,112.72,236.75774088]
[1741654341433,82.42097784,112.81,112.76,0.06034707]
[1741654341739,292.86,112.83,112.74,8.86]
[1741654341927,82.42097784,112.98,112.77,8.92292735]
[1741654341928,0.0671682,112.8,112.77,8.92292735]
[1741654342125,0.0671682,112.8,112.77,0.06292735]
[1741654342334,82.42097784,112.87,112.77,8.86]
[1741654342637,82.42097784,112.87,112.72,4.2932]
[1741654342837,82.42097784,112.84,112.65,82.42097784]
[1741654343131,82.42097784,112.78,112.65,8.86]
[1741654343340,82.42097784,112.75,112.65,2.66]
[1741654343532,375.24097784,112.75,112.59,82.42097784]
[1741654343725,375.24097784,112.81,112.7,8.86]
[1741654343926,375.24097784,112.81,112.67,8.86]
[1741654344130,82.42097784,112.75,112.56,82.42097784]
[1741654344329,82.42097784,112.72,112.61,8.86]
[1741654344531,292.82,112.71,112.64,0.0677213]
[1741654344737,0.05869861,112.68,112.56,4.3309]
[1741654344926,0.05869861,112.68,112.64,8.86]
[1741654345126,82.42097784,112.75,112.67,8.86]
[1741654345329,82.42097784,112.75,112.63,8.86]
[1741654345533,82.42097784,112.75,112.64,8.86]
[1741654345729,82.42097784,112.75,112.59,82.42097784]
[1741654345927,375.24097784,112.78,112.68,8.86]
[1741654346132,82.42097784,112.75,112.59,82.42097784]
[1741654346333,82.42097784,112.72,112.63,8.86]
[1741654346532,82.42097784,112.69,112.61,8.86]
[1741654346733,292.88,112.68,112.59,8.86]
[1741654347034,375.30097784,112.68,112.66,0.00743912]
[1741654347337,292.88,112.76,112.67,8.86]
[1741654347539,292.88,112.82,112.71,8.86]
[1741654347733,292.88,112.82,112.57,292.88]
[1741654347935,292.88,112.82,112.74,8.86]
[1741654348129,82.42097784,112.87,112.68,82.48591623]
[1741654348439,82.42097784,112.87,112.79,8.86]
[1741654348632,82.42097784,112.87,112.78,8.86]
[1741654348834,82.42097784,112.87,112.76,8.86]
[1741654349035,1.77210703,112.86,112.69,13.241]
[1741654349335,82.42097784,112.9,112.8,8.86]
[1741654349541,82.42097784,112.93,112.82,8.86]
[1741654349732,81.87405688,112.86,112.77,77.08819291]
[1741654349926,81.87405688,112.86,112.78,8.9315]
[1741654350231,72.39605688,112.86,112.8,82.42097784]
[1741654350533,1e-08,112.86,112.81,0.06338971]
[1741654351437,375.12097784,112.88,112.81,0.06338971]
[1741654351642,0.06043494,112.85,112.81,0.06338971]
[1741654351832,82.48141278,112.85,112.68,86.81507784]
[1741654352035,82.42097784,112.82,112.68,4.3941]
[1741654352237,82.42097784,112.79,112.64,4.0927]
[1741654352431,375.12097784,112.79,112.64,4.0927]
[1741654352639,82.42097784,112.76,112.59,86.81507784]
[1741654353138,0.05927699,112.69,112.66,0.06048795]
[1741654354537,0.05927699,112.69,112.54,100.66383692]
[1741654354729,0.05927699,112.69,112.56,82.42097784]
[1741654354947,32.37986364,112.72,112.59,82.42097784]
[1741654355839,0.05748078,112.67,112.64,0.05958458]
[1741654356037,31.82212989,112.72,112.65,82.42097784]
[1741654356432,22.14512456,112.72,112.68,82.42097784]
[1741654356634,95.12626602,112.74,112.68,82.42097784]
[1741654356829,88.30926602,112.74,112.71,82.42097784]
[1741654357041,96.51674359,112.77,112.71,82.42097784]
[1741654357433,0.06445732,112.74,112.71,0.06598337]
[1741654358641,0.06445732,112.74,112.72,72.31475188]
[1741654358835,338.81566505,112.95,112.72,72.31475188]
[1741654359138,13.0145,112.88,112.75,72.31475188]
[1741654359340,8.891,112.88,112.78,72.31475188]
[1741654359645,4.1235,112.94,112.81,72.31475188]
[1741654360141,0.06154121,112.88,112.86,72.31475188]
[1741654360342,237.81566505,112.95,112.86,72.31475188]
[1741654360535,237.81566505,112.95,112.88,72.31475188]
[1741654360943,237.81566505,112.95,112.86,72.31475188]
[1741654361140,172.418346,113.0,112.88,72.31475188]
[1741654361536,0.06091417,112.95,112.93,0.06345899]
[1741654361836,0.06091417,112.95,112.9,72.31475188]
[1741654362042,72.31475188,112.99,112.88,72.31475188]
[1741654362245,0.06812902,112.94,112.91,0.06377136]
[1741654362637,72.31475188,112.97,112.84,72.31475188]
[1741654362942,0.06628496,112.94,112.91,0.05918351]
[1741654363141,4.2081,112.99,112.91,0.05918351]
[1741654363343,76.52285188,112.99,112.87,72.31475188]
[1741654363546,72.37638396,112.94,112.82,364.93475188]
[1741654363843,72.37638396,112.94,112.82,74.08748721]
[1741654364045,72.31475188,112.92,112.87,0.06590807]
[1741654364242,72.31475188,112.92,112.82,1.77273533]
[1741654364444,0.05648179,112.89,112.8,72.31475188]
[1741654364657,0.05648179,112.89,112.83,72.31475188]
[1741654364941,4.3669,112.93,112.83,72.31475188]
[1741654365141,72.31475188,112.98,112.86,72.31475188]
[1741654365743,0.05691081,112.93,112.91,0.06423926]
[1741654366037,0.05691081,112.93,112.81,13.2346]
[1741654366234,72.31475188,112.98,112.84,72.31475188]
[1741654366438,72.31475188,112.98,112.87,72.31475188]
[1741654367333,0.0596747,112.94,112.91,0.0659241]
[1741654367745,72.31475188,112.98,112.85,72.31475188]
[1741654367947,72.31475188,113.01,112.88,72.31475188]
[1741654368139,0.00291163,112.94,112.91,0.06772279]
[1741654368635,72.31475188,113.01,112.88,72.31475188]
[1741654368836,72.31475188,112.98,112.86,72.31475188]
[1741654369237,72.31475188,113.01,112.86,72.31475188]
[1741654369546,292.3,113.61,113.0,216.94425564]
[1741654369744,700.0362834,113.49,113.33,216.94425564]
[1741654370046,221.18,113.47,113.4,144.62950376]
[1741654370244,221.18,113.44,113.39,81.50920506]
[1741654370441,221.18,113.41,113.4,0.06439987]
[1741654370643,221.18,113.41,113.31,81.50920506]
[1741654370839,221.18,113.38,113.18,485.3]
[1741654371042,295.38,113.41,113.19,1.59723091]
[1741654371239,292.3,113.45,113.32,81.50920506]
[1741654371444,221.18,113.44,113.32,274.50920506]
[1741654371739,221.18,113.4,113.32,81.50920506]
[1741654371942,221.18,113.42,113.37,0.06775]
[1741654372143,0.06733686,113.39,113.37,0.06775]
[1741654372345,0.06733686,113.39,113.32,274.50920506]
[1741654372540,292.3,113.45,113.32,81.50920506]
[1741654372744,0.05758321,113.39,113.32,81.50920506]
[1741654372950,0.05758321,113.39,113.37,0.06207747]
[1741654373141,221.18,113.37,113.32,81.50920506]
[1741654373347,221.18,113.35,113.28,81.50920506]
[1741654373550,221.18,113.36,113.28,81.50920506]
[1741654373748,221.18,113.33,113.23,81.50920506]
[1741654373944,221.18,113.3,113.29,344.75578802]
[1741654374251,221.18,113.3,113.29,324.38728802]
[1741654374551,74.2,113.3,113.29,304.01758802]
[1741654374743,0.0578233,113.31,113.29,229.81758802]
[1741654374946,0.0578233,113.31,113.29,377.57006861]
[1741654375154,12.7228,113.48,113.29,377.57006861]
[1741654375449,0.06031784,113.31,113.29,377.63593757]
[1741654375655,291.7,113.47,113.3,488.9908466]
[1741654375952,159.56948678,113.36,113.3,488.9908466]
[1741654376146,159.56948678,113.32,113.31,49.25082686]
[1741654376353,291.7,113.38,113.31,49.25082686]
[1741654376652,159.56948678,113.32,113.31,49.25082686]
[1741654376951,159.56948678,113.32,113.22,78.41609189]
[1741654377154,159.56948678,113.28,113.22,78.41609189]
[1741654377448,159.56948678,113.29,113.22,78.41609189]
[1741654377652,291.7,113.38,113.24,0.06378897]
[1741654377854,159.56948678,113.33,113.24,0.06378897]
[1741654378055,159.56948678,113.36,113.26,78.52936894]
[1741654378354,159.56948678,113.34,113.26,78.52936894]
[1741654378550,159.56948678,113.31,113.22,78.52936894]
[1741654378745,159.56948678,113.34,113.22,78.52936894]
[1741654378944,291.7,113.38,113.27,78.52936894]
[1741654379146,291.7,113.38,113.22,271.52936894]
[1741654379147,291.7,113.38,113.25,0.05777496]
[1741654379352,159.56948678,113.27,113.25,0.05777496]
[1741654379553,159.56948678,113.26,113.18,78.52936894]
[1741654380049,291.58,113.3,113.18,78.52936894]
[1741654380245,451.14948678,113.3,113.24,78.52936894]
[1741654380656,159.56948678,113.27,113.21,78.58627024]
[1741654380852,451.14948678,113.3,113.24,78.52936894]
[1741654381157,0.0657923,113.28,113.24,78.52936894]
[1741654381355,291.58,113.36,113.26,78.52936894]
[1741654381557,159.56948678,113.35,113.26,0.06001481]
[1741654381757,291.5,113.43,113.3,78.52936894]
[1741654381955,78.52936894,113.55,113.36,78.52936894]
[1741654382153,159.56948678,113.47,113.39,78.52936894]
[1741654382354,159.56948678,113.47,113.42,78.52936894]
[1741654382559,291.5,113.54,113.45,78.52936894]
[1741654382748,159.56948678,113.52,113.48,78.52936894]
[1741654382949,159.56948678,113.53,113.48,78.52936894]
[1741654383260,291.5,113.66,113.48,2.64]
[1741654383458,159.56948678,113.57,113.5,78.52936894]
[1741654383658,159.56948678,113.55,113.49,0.05792116]
[1741654383859,159.56948678,113.52,113.43,4.3352]
[1741654384157,159.56948678,113.45,113.39,78.27365131]
[1741654384354,159.56948678,113.46,113.39,78.27365131]
[1741654384552,0.05614325,113.49,113.42,78.27365131]
[1741654384753,369.47365131,113.65,113.42,78.27365131]
[1741654384957,159.56948678,113.58,113.5,78.27365131]
[1741654385258,292.95978882,113.65,113.5,78.27365131]
[1741654385661,159.56948678,113.59,113.5,78.27365131]
[1741654386061,0.06775647,113.59,113.56,0.05556138]
[1741654386363,159.56948678,113.59,113.5,78.27365131]
[1741654386659,0.05702883,113.59,113.57,135.96566346]
[1741654386959,82.36975131,113.73,113.57,135.96566346]
[1741654387152,159.56948678,113.67,113.59,78.27365131]
[1741654387353,159.56948678,113.68,113.59,78.27365131]
[1741654387553,291.2,113.75,113.62,78.27365131]
[1741654387752,98.13816486,113.66,113.59,78.27365131]
[1741654387954,98.13816486,113.63,113.6,351.74021637]
[1741654388160,62.75418531,113.61,113.6,351.74021637]
[1741654388349,78.27365131,113.71,113.6,351.79932948]
[1741654388558,78.27365131,113.68,113.6,351.79932948]
[1741654388759,4.504,113.7,113.6,351.74021637]
[1741654388960,1.75886025,113.71,113.6,90.11275203]
[1741654389363,291.2,113.75,113.6,90.11275203]
[1741654389565,0.05904562,113.67,113.64,0.05570416]
[1741654390056,78.27365131,113.73,113.6,90.11275203]
[1741654390264,291.2,113.75,113.67,90.11275203]
[1741654390459,243.46842412,113.75,113.67,90.11275203]
[1741654390765,0.0592039,113.72,113.67,90.11275203]
[1741654391162,290.76,113.82,113.7,0.058515]
[1741654391359,290.76,113.82,113.72,78.27365131]
[1741654391761,4.1174,113.86,113.72,78.27365131]
[1741654391956,290.76,113.89,113.72,78.27365131]
[1741654392160,290.76,113.89,113.75,78.27365131]
[1741654392459,290.76,113.89,113.79,0.05857331]
[1741654392665,290.76,113.89,113.8,90.11275203]
[1741654392969,290.76,113.89,113.83,90.11275203]
[1741654393163,369.03365131,113.89,113.83,90.11275203]
[1741654393370,78.27365131,113.86,113.8,258.19673692]
[1741654393669,78.27365131,113.86,113.8,251.37933692]
[1741654393964,1.7566974,113.85,113.77,49.21104355]
[1741654394161,202.04420075,113.89,113.77,49.21104355]
[1741654394362,123.77054944,113.89,113.77,49.21104355]
[1741654394567,123.77054944,113.89,113.78,78.27365131]
[1741654394766,123.77054944,113.89,113.81,78.27365131]
[1741654394964,123.77054944,113.89,113.78,78.27365131]
[1741654395365,123.77054944,113.89,113.78,127.48469486]
[1741654395564,123.77054944,113.89,113.82,0.06345995]